Cogmind - Beta 14 @@@ ROGUE MODE // 2025.03.06 @ 02:40:26 Player: Willow Result: Destroyed by B-75 Beast with Magnetic Acceleration Cannon Performance ------------- Evolutions (2) 1000 Regions Visited (8) 1600 Robots Destroyed (120) 600 Value Destroyed (3841) 3841 Prototype IDs (40) 800 Alien Tech Used (0) 0 Bonus (1754) 1754 TOTAL SCORE: 9595 Bonus ------- High Alert Combat Kills 463 Follower Combat Kills 195 Entered Garrisons 400 Used RIF Installer 500 Aligned with FarCom 300 Friendly Fire -104 Cogmind --------- Core Integrity 0/550 Matter 209/300 Energy 247/265 System Corruption 0% Temperature Cool (12) Movement Treading (160) Location -8/Garrison Parts ------- > --- POWER (1) -------- Improved Ion Engine > --- PROPULSION (2) --- Medium Treads Medium Treads > --- UTILITY (6) ------ Large Storage Unit Improved Targeting Computer Relay Coupler [Grunt] (17) Relay Coupler [Sentry] (15) Relay Coupler [Hunter] (7) Relay Coupler [Behemoth] (7) > --- WEAPON (2) ------- Gauss Cannon Gauss Cannon > --- INVENTORY (15) --- Medium Treads Advanced Heat Sink Huge Storage Unit Superbattery (1500) Medium Reactive Plating Advanced System Shield Relay Coupler [NC] (28) Relay Coupler [NC] (27) Relay Coupler [NC] (25) Relay Coupler [Grunt] (23) Improved Remote Datajack Peak State ------------ > --- POWER ------------ Light Angular Momentum Engine > --- PROPULSION ------- Medium Treads Medium Treads > --- UTILITY ---------- Advanced Heat Sink Large Storage Unit Improved Targeting Computer Hacking Suite Relay Coupler [Grunt] Advanced System Restoration Module > --- WEAPON ----------- Advanced Plasma Cannon Improved Remote Datajack > --- INVENTORY -------- Medium Treads Medium Treads Huge Storage Unit Superbattery Medium Reactive Plating Advanced System Shield Relay Coupler [NC] Relay Coupler [Sentry] Relay Coupler [Hunter] Relay Coupler [Behemoth] Gauss Cannon Gauss Cannon [Rating: 50] Favorites ----------- Power Improved Ion Engine Engine Improved Ion Engine Propulsion Light Treads Treads Light Treads Utility Large Storage Unit Device Seismic Detector Storage Large Storage Unit Processor Improved Targeting Computer Hackware Hacking Suite Protection Light Armor Plating Weapon Mini Grenade Launcher Energy Gun Medium Laser Energy Cannon Advanced Plasma Cannon Ballistic Gun Assault Rifle Ballistic Cannon Hypervelocity Gauss Cannon Launcher Mini Grenade Launcher Special Weapon Improved Remote Datajack Special Melee Weapon Datajack Build | -11 -10 -10 -10 -9 -8 -8 -8 -8 ------- Run | Yrd Mat Min Exi Min Mat Gar Mat Gar Slots Evolved 4 | . . . . . 4 . . . Power . | . . . . . . . . . Propulsion . | . . . . . . . . . Utility 4 | . . . . . 4 . . . Weapon . | . . . . . . . . . Parts Attached 78 | 7 4 1 1 2 26 11 13 13 Power 6 | 1 1 . . . 2 . 1 1 Engine 6 | 1 1 . . . 2 . 1 1 Core . | . . . . . . . . . Reactor . | . . . . . . . . . Propulsion 15 | 2 . . . 1 7 2 2 1 Treads 15 | 2 . . . 1 7 2 2 1 Leg . | . . . . . . . . . Wheel . | . . . . . . . . . Hover . | . . . . . . . . . Flight . | . . . . . . . . . Utility 26 | 2 1 . . . 8 6 4 5 Device 9 | 1 . . . . 2 3 2 1 Storage 2 | 1 1 . . . . . . . Processor 2 | . . . . . 2 . . . Hackware 7 | . . . . . 1 . 2 4 Protection 6 | . . . . . 3 3 . . Artifact . | . . . . . . . . . Weapon 31 | 2 2 1 1 1 9 3 6 6 Energy Gun 1 | 1 . . . . . . . . Energy Cannon 9 | . . . . . 5 . 2 2 Ballistic Gun 4 | 1 . . . . . 2 1 . Ballistic Cannon 9 | . 1 . . . 3 1 2 2 Launcher 4 | . 1 1 . 1 1 . . . Special Weapon 3 | . . . . . . . 1 2 Impact Weapon . | . . . . . . . . . Slashing Weapon . | . . . . . . . . . Piercing Weapon . | . . . . . . . . . Special Melee Weapon 1 | . . . 1 . . . . . Unidentified Prototypes 1 | . . . . . 1 . . . Parts Lost 16 | . . . . 2 3 2 6 3 Power 3 | . . . . . 1 . 1 1 Propulsion 5 | . . . . 2 1 . 2 . Utility 5 | . . . . . 1 2 1 1 Weapon 3 | . . . . . . . 2 1 Highest Loss Streak 5 | . . . . 1 2 1 5 1 To Critical Strikes . | . . . . . . . . . Average Slot Usage (%) 97 | . 100 100 100 91 93 99 96 93 Engine 10 | . 14 14 14 14 9 9 8 8 Treads 20 | . 28 28 28 19 17 18 17 18 Device 13 | . 14 14 14 14 14 13 15 9 Storage 10 | . 14 14 14 14 9 9 9 9 Processor 7 | . . . . . 14 9 9 9 Hackware 5 | . . . . . 1 9 13 20 Protection 6 | . . . . . 9 13 4 . Energy Gun 1 | . 6 . . . . . . . Energy Cannon 3 | . . . . . 6 1 7 7 Ballistic Gun 5 | . 14 11 . . . 10 1 . Ballistic Cannon 4 | . . . . . 8 5 5 9 Launcher 4 | . 7 16 14 28 2 . . . Peak Build Rating 50 | 7 9 10 10 11 32 47 50 48 Average Rating 25 | 5 8 9 9 10 22 39 47 43 On Entrance 18 | . 7 9 10 10 11 32 47 44 Naked Turns . | . . . . . . . . . Heaviest Build 70 | 13 29 29 28 28 62 65 70 49 Greatest Support 56 | 40 40 40 40 40 48 48 56 56 Greatest Overweight (x) 2 | 2 . . . 1 1 1 1 . Average Overweight (x) . | . . . . . . 1 . . Largest Inventory Capacity 15 | 8 15 15 15 15 15 15 15 15 Average Capacity 14 | 7 14 15 15 15 15 15 15 15 Most Carried 15 | 1 13 13 14 15 15 15 15 15 Average Carried 12 | . 7 12 13 14 14 14 13 13 Final Capacity 15 | 8 15 15 15 15 15 15 15 15 Final Carried 15 | 1 12 13 14 15 15 15 12 11 Class Distribution -------------------- 53% | Mutant 28% | Scavenger-Mutant 18% | Bothacker-Mutant Dominant Class ---------------- Mutant | -10/Materials Mutant | -10/Mines Mutant | -10/Exiles Mutant | -9/Mines Scavenger-Mutant | -8/Materials Mutant | -8/Garrison Bothacker-Mutant | -8/Materials Bothacker-Mutant | -8/Garrison Resources | -11 -10 -10 -10 -9 -8 -8 -8 -8 ----------- Run | Yrd Mat Min Exi Min Mat Gar Mat Gar Matter Collected 2901 | 303 367 122 177 60 605 619 431 217 Remotely . | . . . . . . . . . Salvage Created 3480 | 240 564 22 . 40 1068 658 794 94 Parts 217 | 18 26 6 . 10 67 47 41 2 Haulers Intercepted 8 | . 2 . . . 5 . 1 . Recyclers Shooed 2 | . . 1 . . 1 . . . Parts Field Recycled . | . . . . . . . . . Retrieved Matter . | . . . . . . . . . Parts Self-Destructed . | . . . . . . . . . Prevented . | . . . . . . . . . Kills | -11 -10 -10 -10 -9 -8 -8 -8 -8 ------- Run | Yrd Mat Min Exi Min Mat Gar Mat Gar Combat Hostiles Destroyed 94 | . 15 6 . 7 29 19 15 3 Guns 18 | . 3 . . . . 14 1 . Cannons 46 | . 3 . . . 21 5 14 3 AOE 28 | . 8 6 . 7 7 . . . Classes Destroyed 17 | 2 6 2 . . 1 3 3 . Worker 2 | . 1 . . . . . 1 . Tunneler 8 | 8 . . . . . . . . Hauler 8 | . 2 . . . 5 . 1 . Recycler 2 | 1 1 . . . . . . . Operator 1 | . 1 . . . . . . . Watcher 8 | . 2 . . . 5 . 1 . Swarmer 32 | . 3 2 . 6 15 4 2 . Cutter 2 | . . . . . . 2 . . Grunt 37 | . 12 . . 1 11 4 7 2 Duelist 1 | . . . . . . . 1 . Protector 1 | . . . . . . . 1 . Sentry 9 | . . . . . 3 6 . . Demolisher 2 | . . . . . . . 1 1 Hunter 5 | . . . . . . 2 3 . Programmer 1 | . . . . . . 1 . . Zionite 1 | . . 1 . . . . . . Assembled 4 | . . 4 . . . . . . Best Kill Streak 6 | 4 6 3 . 4 5 3 4 2 Combat Bots Only 6 | . 6 3 . 4 5 3 3 2 Max Kills in Single Turn 3 | 1 3 1 . 3 3 2 1 1 Gunslinging 1 | . . . . . . 1 . . Exploded 3 | . 3 1 . 3 3 . . . Melee . | . . . . . . . . . Uniques/NPCs Destroyed . | . . . . . . . . . Combat | -11 -10 -10 -10 -9 -8 -8 -8 -8 -------- Run | Yrd Mat Min Exi Min Mat Gar Mat Gar Hostile Shots Fired 421 | . 43 3 . 18 103 126 92 36 Missed 105 | . 12 3 . 7 26 32 17 8 Damage Taken 4645 | . 416 91 . 190 1046 1111 1191 600 Core 748 | . 80 23 . 83 153 102 168 139 Absorbed by Shields 25 | . . . . . . 25 . . Ignored by Resistances 235 | . . . . . . 198 37 . Regen/Repaired (Parts) 77 | . . . . . 77 . . . Core Remaining (%) 62 | 100 . . . 25 . . . . Volleys Fired 350 | 11 71 7 . 4 86 77 61 33 Largest 2 | 2 2 2 . 2 2 2 2 2 Hottest 159 | 70 70 60 . 60 107 119 159 146 Shots Fired 562 | 22 105 10 . 5 161 137 79 43 Gun 209 | 22 86 . . . . 89 12 . Cannon 303 | . 8 . . . 156 48 61 30 Launcher 31 | . 11 10 . 5 5 . . . Special 19 | . . . . . . . 6 13 Kinetic 331 | 11 68 . . . 81 124 31 16 Thermal 181 | 11 26 . . . 75 13 42 14 Explosive 31 | . 11 10 . 5 5 . . . Electromagnetic . | . . . . . . . . . Robot Hit Streak 21 | 7 8 2 . 4 10 12 8 21 Robot Miss Streak 4 | 1 4 1 . 1 3 4 4 1 Penetration Max 1 | . . . . . . 1 1 . Secondary Targets 2 | . . . . . . 2 . . Max Gunslinging Chain 1 | . . . . . . 1 . . Shots Hit Robots 345 | 13 60 3 4 3 99 78 54 31 Core Hits 185 | 10 30 14 . 10 61 31 25 4 Critical Kills 6 | . . . . . 1 1 4 . Critical Parts Destroyed 8 | . . . . . . 4 4 . Critical Strikes 21 | . 1 . . . 4 5 8 3 Burn 1 | . 1 . . . . . . . Meltdown 1 | . . . . . 1 . . . Destroy 13 | . . . . . . 5 8 . Blast 6 | . . . . . 3 . . 3 Melee Attacks 5 | . . . 5 . . . . . Impact . | . . . . . . . . . Slashing . | . . . . . . . . . Piercing . | . . . . . . . . . Sneak Attacks 4 | . . . 4 . . . . . Combat Hostiles . | . . . . . . . . . Follow-up Attacks . | . . . . . . . . . Damage Inflicted 8874 | 166 1433 475 . 531 2676 1574 1447 572 Guns 1933 | 166 633 . . . . 975 159 . Cannons 4601 | . 128 . . . 2030 599 1272 572 Explosions 2282 | . 653 475 . 531 623 . . . Melee . | . . . . . . . . . Ramming 58 | . 19 . . . 23 . 16 . Kinetic 3567 | 52 599 . . . 898 1288 443 287 Thermal 2967 | 114 162 . . . 1132 286 988 285 Explosive 2282 | . 653 475 . 531 623 . . . Electromagnetic . | . . . . . . . . . Impact . | . . . . . . . . . Slashing . | . . . . . . . . . Piercing . | . . . . . . . . . Highest Corruption 4 | . . . . . . 4 . . Average Corruption 3 | . . . . . . 3 . . Corruption Purged 4 | . . . . . . 4 . . Corruption Blocked . | . . . . . . . . . Effects 10 | . . . . . . 10 . . Message Errors 1 | . . . . . . 1 . . Matter Fused 5 | . . . . . . 5 . . Heat Flow Errors 1 | . . . . . . 1 . . Energy Discharges 1 | . . . . . . 1 . . Data Loss (major) 1 | . . . . . . 1 . . Weapon Failures 1 | . . . . . . 1 . . Overload Shots . | . . . . . . . . . Overflow Damage 75 | . . 19 . 11 35 . 4 6 Projectiles 34 | . . . . . 24 . 4 6 Explosions 41 | . . 19 . 11 11 . . . Melee . | . . . . . . . . . Knockbacks 21 | . 1 . . . 13 2 4 1 Impact 1 | . . . . . 1 . . . Kinetic 20 | . 1 . . . 12 2 4 1 Secondary . | . . . . . . . . . Self-Inflicted Damage 303 | . 50 70 . 99 84 . . . Shots 9 | . 2 2 . 3 2 . . . Rammed 13 | . 5 . . . 6 . 2 . Targets Rammed 14 | . 6 . . . 6 . 2 . Kicked . | . . . . . . . . . Crushed 1 | . 1 . . . . . . . Highest Temperature 370 | 36 126 . . 12 66 211 370 150 Average Temperature 56 | 14 27 . . 10 16 50 107 47 Received Heat Transfer 1530 | . 174 . . 12 423 333 414 174 Effects 1 | . . . . . . . 1 . Interference 1 | . . . . . . . 1 . Siege Activations . | . . . . . . . . . Robots Corrupted . | . . . . . . . . . Combat Hostiles . | . . . . . . . . . Parts Fried . | . . . . . . . . . Impact Corruptions . | . . . . . . . . . Robots Melted 2 | . 1 . . . 1 . . . Combat Hostiles 2 | . 1 . . . 1 . . . Parts Melted 6 | . 1 . . . 4 . 1 . Heat Transferred 5361 | 333 555 . . . 2146 550 1377 400 Parts Sabotaged . | . . . . . . . . . Parts Stolen . | . . . . . . . . . Parts Stripped . | . . . . . . . . . Power Chain Reactions . | . . . . . . . . . Alert | -11 -10 -10 -10 -9 -8 -8 -8 -8 ------- Run | Yrd Mat Min Exi Min Mat Gar Mat Gar Peak Influence 1265 | 45 404 256 . 227 549 1265 780 602 Initial 616 | . 29 138 . . 6 302 616 481 Average 427 | 23 203 179 . 171 248 758 685 552 Maximum Alert Level 4 | . 2 1 . 1 2 4 3 2 Low Security (%) 25 | 100 50 58 . 44 31 . . . Level 1 29 | . 45 41 . 55 51 13 . . Level 2 24 | . 4 . . . 17 30 48 100 Level 3 18 | . . . . . . 47 51 . Level 4 2 | . . . . . . 8 . . Level 5 . | . . . . . . . . . High Security . | . . . . . . . . . Max Security . | . . . . . . . . . Squads Dispatched 12 | . 4 . . 1 3 . 4 . Investigation 7 | . 3 . . 1 2 . 1 . Extermination . | . . . . . . . . . Reinforcement 2 | . 1 . . . 1 . . . Assault 2 | . . . . . . . 2 . Garrison 1 | . . . . . . . 1 . Intercept . | . . . . . . . . . Searches Triggered . | . . . . . . . . . Construction Impeded 1 | . . . . . 1 . . . Haulers Reinforced . | . . . . . . . . . Active Scanning Responses . | . . . . . . . . . Cargo Convoy Interrupts . | . . . . . . . . . Stealth | -11 -10 -10 -10 -9 -8 -8 -8 -8 --------- Run | Yrd Mat Min Exi Min Mat Gar Mat Gar Distress Signals 7 | . 5 . . . 1 . 1 . Communications Jammed 4 | . . . . . 4 . . . Distress Signals 3 | . . . . . 3 . . . Times Spotted 159 | . 30 12 . 11 38 26 30 12 Peak Tracking Total 6 | . 5 6 . 4 5 3 6 5 Tactical Retreats 9 | . 2 1 . 1 1 4 . . Traps | -11 -10 -10 -10 -9 -8 -8 -8 -8 ------- Run | Yrd Mat Min Exi Min Mat Gar Mat Gar Traps Triggered 14 | . 1 . . . 1 10 1 1 Indirectly . | . . . . . . . . . Trap Hack Attempts . | . . . . . . . . . Triggered . | . . . . . . . . . Disarmed . | . . . . . . . . . Reprogrammed . | . . . . . . . . . Reused . | . . . . . . . . . Traps Extracted . | . . . . . . . . . Installed . | . . . . . . . . . Triggered . | . . . . . . . . . Machines | -11 -10 -10 -10 -9 -8 -8 -8 -8 ---------- Run | Yrd Mat Min Exi Min Mat Gar Mat Gar Machines Disabled 12 | . 4 . . . 3 3 1 1 Max in Single Turn 1 | . 1 . . . 1 1 . 1 Garrison Relay 3 | . . . . . . 2 . 1 Machines Repaired . | . . . . . . . . . Machines Dismantled . | . . . . . . . . . Machines Sabotaged . | . . . . . . . . . Overloaded Fab Kills . | . . . . . . . . . Hacking | -11 -10 -10 -10 -9 -8 -8 -8 -8 --------- Run | Yrd Mat Min Exi Min Mat Gar Mat Gar Machines Accessed 32 | . 8 . 2 1 12 4 4 1 Terminals 22 | . 6 . . . 8 4 3 1 Fabricators . | . . . . . . . . . Repair Stations 1 | . . . . . 1 . . . Recycling Units 3 | . 2 . . . 1 . . . Scanalyzers 1 | . . . . . 1 . . . Garrison Access 2 | . . . . . 1 . 1 . Total Hacks 82 | . 26 . 2 1 31 6 14 2 Successful 45 | . 15 . 2 1 16 3 7 1 Failed 37 | . 11 . . . 15 3 7 1 Catastrophic 3 | . . . . . 1 . 2 . Database Lockouts . | . . . . . . . . . Manual 60 | . 22 . 1 . 24 . 13 . Terminals 69 | . 24 . . . 24 6 13 2 Fabricators . | . . . . . . . . . Repair Stations 2 | . . . . . 2 . . . Recycling Units 3 | . 2 . . . 1 . . . Scanalyzers 2 | . . . . . 2 . . . Garrison Access 3 | . . . . . 2 . 1 . Terminal Hacks 16 | . 5 . 2 1 . 3 4 1 Record 1 | . . . 1 . . . . . Robot Analysis 5 | . 2 . . . . . 3 . Prototype ID Bank 1 | . 1 . . . . . . . Open Door 1 | . . . . 1 . . . . Emergency Access Points 1 | . . . . . . 1 . . Terminal Index 2 | . 1 . . . . . 1 . Investigation Status 1 | . 1 . . . . . . . Patrol Navigation 2 | . . . . . . 1 . 1 Security Stations 1 | . . . . . . 1 . . Derelict Proto ID Bank 1 | . . . 1 . . . . . Fabricator Hacks . | . . . . . . . . . Repair Station Hacks 2 | . . . . . 2 . . . Scan Component 1 | . . . . . 1 . . . Repair 1 | . . . . . 1 . . . Recycling Unit Hacks . | . . . . . . . . . Scanalyzer 2 | . . . . . 2 . . . Insert Component 1 | . . . . . 1 . . . Analyze 1 | . . . . . 1 . . . Garrison Access Hacks 2 | . . . . . 1 . 1 . Unlock Access 2 | . . . . . 1 . 1 . Unauthorized Hacks 23 | . 10 . . . 11 . 2 . Terminals 20 | . 8 . . . 10 . 2 . Botnet 7 | . 3 . . . 3 . 1 . Skim 13 | . 5 . . . 7 . 1 . Fabricators . | . . . . . . . . . Repair Stations . | . . . . . . . . . Recycling Units 3 | . 2 . . . 1 . . . Tunnel 3 | . 2 . . . 1 . . . Scanalyzers . | . . . . . . . . . Garrison Access . | . . . . . . . . . Data Cores Recovered . | . . . . . . . . . Used . | . . . . . . . . . Hacking Detections 24 | . 6 . . . 11 2 4 1 Full Trace Events 2 | . 1 . . . . 1 . . Feedback Events . | . . . . . . . . . Feedback Blocked . | . . . . . . . . . Robot Schematics Acquired . | . . . . . . . . . Robots Built . | . . . . . . . . . Authchips . | . . . . . . . . . Time . | . . . . . . . . . Total Robot Build Rating . | . . . . . . . . . Part Schematics Acquired 1 | . . . . . 1 . . . Parts Built . | . . . . . . . . . Authchips . | . . . . . . . . . Time . | . . . . . . . . . Total Part Build Rating . | . . . . . . . . . Parts Repaired 1 | . . . . . 1 . . . Time 26 | . . . . . 26 . . . Parts Recycled . | . . . . . . . . . Recycled Matter . | . . . . . . . . . Retrieved Matter . | . . . . . . . . . Retrieved Components . | . . . . . . . . . Parts Scanalyzed 1 | . . . . . 1 . . . Part Schematics Acquired 1 | . . . . . 1 . . . Parts Damaged . | . . . . . . . . . Bothacking | -11 -10 -10 -10 -9 -8 -8 -8 -8 ------------ Run | Yrd Mat Min Exi Min Mat Gar Mat Gar Used RIF Installer 1 | . . . . . . 1 . . Robots Hacked 12 | . . . 4 . . . 4 4 Non-combat 4 | . . . 3 . . . 1 . Combat 8 | . . . 1 . . . 3 4 Robot Hacks Applied 12 | . . . 4 . . . 4 4 parse_system 5 | . . . 4 . . . 1 . reboot_system 1 | . . . . . . . . 1 overwrite_iff 3 | . . . . . . . 2 1 formatsys_high 3 | . . . . . . . 1 2 Relay Couplers Released 15 | . . . . . . 11 . 4 Machine Destruction 11 | . . . . . . 7 . 4 Programmers 4 | . . . . . . 4 . . Attached 6 | . . . . . . . 2 4 Fabnet Peak Effective % . | . . . . . . . . . Robots Rewired 3 | . . . . . . . . 3 Allies Hacked . | . . . . . . . . . Hacks Repelled . | . . . . . . . . . Allies | -11 -10 -10 -10 -9 -8 -8 -8 -8 -------- Run | Yrd Mat Min Exi Min Mat Gar Mat Gar Total Allies 12 | . . 2 . . . 1 3 6 Largest Group 4 | . . 2 . . . 1 2 4 Highest-Rated Group 84 | . . 47 . . . 20 44 84 Highest-Rated Ally 31 | . . 31 . . . 20 29 21 Total Orders . | . . . . . . . . . Ally Attacks 83 | . . 16 . . . 9 18 40 Total Damage 1369 | . . 144 . . . 208 332 685 Kills 9 | . . 3 . . . 2 3 1 Allies Corrupted . | . . . . . . . . . Allies Melted 1 | . . . . . . . . 1 Intel | -11 -10 -10 -10 -9 -8 -8 -8 -8 ------- Run | Yrd Mat Min Exi Min Mat Gar Mat Gar Robot Analysis Total 5 | . 2 . . . . . 3 . Derelict Logs Recovered . | . . . . . . . . . Drone Launches . | . . . . . . . . . Drone Recoveries . | . . . . . . . . . Exploration | -11 -10 -10 -10 -9 -8 -8 -8 -8 ------------- Run | Yrd Mat Min Exi Min Mat Gar Mat Gar Turns Passed 8222 | 229 1472 345 462 416 1904 1969 913 512 Spaces Moved 3488 | 46 790 204 283 116 773 695 344 237 Core 8 | 8 . . . . . . . . Treads 3480 | 38 790 204 283 116 773 695 344 237 Legs . | . . . . . . . . . Wheels . | . . . . . . . . . Hover . | . . . . . . . . . Flight . | . . . . . . . . . Fastest Speed 50 | 50 160 160 160 160 160 240 160 160 Average Speed 184 | 150 160 160 160 171 172 244 208 160 Slowest Speed 245 | 160 160 160 160 240 240 245 245 160 Overloaded Moves . | . . . . . . . . . Propulsion Burnouts . | . . . . . . . . . Robots Hopped . | . . . . . . . . . Cave-ins Triggered . | . . . . . . . . . Exploration Rate (%) 49 | 5 91 52 63 30 63 67 39 31 Regions Visited 8 Branch Regions 3 Pre-discovered Areas 10 | . 6 . 1 . 3 . . . Known Exits Taken 2 | . . . . . 1 . 1 . Unknown Exits Taken 5 | 1 1 1 1 1 . . . . Scrap Searched 2 | . . 1 . 1 . . . . Spaces Dug 20 | . . 20 . . . . . . Terrain Destroyed 251 | . 76 81 . 41 36 3 13 1 Melee . | . . . . . . . . . Projectile 19 | . . . . . 2 3 13 1 AOE 232 | . 76 81 . 41 34 . . . Terrain Rammed . | . . . . . . . . . Walls Destroyed . | . . . . . . . . . Machines Disabled . | . . . . . . . . . Actions | -11 -10 -10 -10 -9 -8 -8 -8 -8 --------- Run | Yrd Mat Min Exi Min Mat Gar Mat Gar Total 4741 | 180 889 212 289 329 1186 857 467 332 Wait 694 | 116 4 . . 206 247 32 44 45 Move 3480 | 45 789 203 282 115 772 693 344 237 Hop . | . . . . . . . . . Pick Up 59 | 1 12 1 1 2 24 12 2 4 Fast Attach 24 | 7 . . . . 8 5 3 1 Attach 15 | . . . . 1 5 1 4 4 Detach . | . . . . . . . . . Swap 39 | . 4 1 1 1 13 5 6 8 Drop 44 | . 3 . . . 25 15 1 . Fire 350 | 11 71 7 . 4 86 77 61 33 Melee 5 | . . . 5 . . . . . Ram . | . . . . . . . . . Kick . | . . . . . . . . . Crush 14 | . 6 . . . 6 . 2 . Escape Stasis 17 | . . . . . . 17 . . Rewire . | . . . . . . . . . Trap . | . . . . . . . . . Miscellaneous . | . . . . . . . . . Route ------- -11/Scrapyard -10/Materials (discovered 5 exits: *Mat x3 / [*Min] / Sub) -10/Mines (discovered 2 exits: *Mat / *Exi) -10/Exiles -9/Mines -8/Materials (discovered 3 exits: [*Fac] / *Sto / Gar) -8/Garrison (discovered 3 exits: *Mat x3) -8/Materials (discovered 3 exits: [*Fac] / *Sto / Gar) -8/Garrison History --------- Turn | Location | Event 8 | -11/Scrapyard | Discovered new exit (range 16) 230 | -11/Scrapyard | Entered Materials 300 | -10/Materials | Build established: Mutant 605 | -10/Materials | Discovered new exit (range 16) 776 | -10/Materials | Discovered new exit (range 15) 1168 | -10/Materials | Discovered new exit (range 16) 1292 | -10/Materials | Learned Storage terminal intel 1355 | -10/Materials | Learned location of 1 exit from Storage 1482 | -10/Materials | Learned Materials stockpile data 1505 | -10/Materials | Learned location of Storage (-8) 1516 | -10/Materials | Identified exit to Subcaves 1516 | -10/Materials | Identified exit to Materials 1536 | -10/Materials | Learned Storage stockpile data 1702 | -10/Materials | Entered Mines 1731 | -10/Mines | Deemed a non-threat by the Exiles lab entrance 1782 | -10/Mines | Discovered exit to Materials (range 9) 1958 | -10/Mines | Assembled infested the area 2040 | -10/Mines | Discovered new exit (range 5) 2047 | -10/Mines | Entered Exiles 2092 | -10/Exiles | Met 8R-AWN 2118 | -10/Exiles | Met EX-HEX 2161 | -10/Exiles | Met EX-BIN 2225 | -10/Exiles | Aligned with FarCom system 2226 | -10/Exiles | Given EX-Vault access code 2263 | -10/Exiles | Opened EX-Vault 2271 | -10/Exiles | Found Superbattery 2302 | -10/Exiles | Warned to stay clear of 0b10 Research branches 2349 | -10/Exiles | Met EX-DEC 2355 | -10/Exiles | Learned location of Zion (-6) 2486 | -10/Exiles | Discovered new exit (range 14) 2509 | -10/Exiles | Left Exiles lab with Superbattery 2509 | -10/Exiles | Entered Mines 2512 | -9/Mines | Core integrity fell below 50% 2621 | -9/Mines | Discovered new exit (range 11) 2676 | -9/Mines | Met a Derelict shopkeep closing up shop 2925 | -9/Mines | Entered Materials 2925 | -8/Materials | Evolved 4 slots: Utility x4 2927 | -8/Materials | Discovered new exit (range 8) 3691 | -8/Materials | Build established: Scavenger-Mutant 4158 | -8/Materials | Repaired Lgt. Armor Plating 4167 | -8/Materials | Learned Storage trap positions 4197 | -8/Materials | Learned Factory recycling unit intel 4216 | -8/Materials | Learned 4 Lower Caves zone layouts 4226 | -8/Materials | Learned 4 Factory zone layouts 4282 | -8/Materials | Learned Factory recycling unit intel 4324 | -8/Materials | Learned location of 1 exit from Recycling 4576 | -8/Materials | Discovered new exit (range 19) 4601 | -8/Materials | Identified exit to Garrison 4829 | -8/Materials | Entered Garrison 4935 | -8/Garrison | Triggered checkpoint 5197 | -8/Garrison | Triggered checkpoint 5291 | -8/Garrison | Discovered new exit (range 10) 5408 | -8/Garrison | Rescued a captive Derelict 5413 | -8/Garrison | Triggered checkpoint 5481 | -8/Garrison | Garrison Relay disabled 5681 | -8/Garrison | Triggered checkpoint 5875 | -8/Garrison | Triggered checkpoint 5889 | -8/Garrison | Triggered checkpoint 6069 | -8/Garrison | Build established: Mutant 6264 | -8/Garrison | Discovered new exit (range 10) 6311 | -8/Garrison | Triggered checkpoint 6332 | -8/Garrison | Garrison Relay disabled 6640 | -8/Garrison | Installed Relay Interface Framework 6688 | -8/Garrison | Learned Materials security intel 6702 | -8/Garrison | Discovered new exit (range 12) 6798 | -8/Garrison | Entered Materials 6799 | -8/Materials | Identified exit to Storage 6945 | -8/Materials | Build established: Bothacker-Mutant 7198 | -8/Materials | First assault squad dispatched 7213 | -8/Materials | Discovered new exit (range 15) 7276 | -8/Materials | Core integrity fell below 50% 7353 | -8/Materials | Lost 5 parts (1p1n1u2w) 7632 | -8/Materials | Garrison activated, responded to threat 7711 | -8/Materials | Identified exit to Garrison 7711 | -8/Materials | Entered Garrison 7807 | -8/Garrison | Triggered checkpoint 7818 | -8/Garrison | Core integrity fell below 20% 7840 | -8/Garrison | Garrison Relay disabled 8083 | -8/Garrison | Triggered checkpoint 8180 | -8/Garrison | Spotted B-75 Beast 8223 | -8/Garrison | Destroyed by B-75 Beast with Magnetic Acceleration Cannon Last Messages --------------- 08195_ Slug penetrates B-75 Beast. 08203_ Slug penetrates Wall. 08205_ Discarded Hacking Suite. 08205_ Slug penetrates Wall. 08206_ Jacked H-55 Commando... >>overwrite_iff Rewriting IFF filter. 08207_ Slug penetrates H-55 Commando. 08208_ Slug penetrates Wall. 08212_ Slug penetrates B-75 Beast. 08214_ Slug penetrates Wall. 08215_ Slug penetrates B-75 Beast. 08217_ B-75 Beast reactivates. 08217_ Commando 3a destroyed. 08217_ Slug penetrates Wall. 08218_ Wall collapses. 08220_ Slug penetrates Commando 3b. 08220_ Commando 3c suffers critical hit (Meltdown). 08220_ Commando 3b destroyed. Map ----- +----------------------------------------------------+ | ?????????????????????????????????????????????????? | | ?????????????????????????????????????????????????? | | ?????????????????????????????????????????????????? | | ?????????????????????????????????????????????????? | | ?????????????????????????????????????????????????? | | ?????????????????????????????????????????????????? | | ?????????????????????????????????????????????????? | | ?????????????????????????????????????????????????? | | ?????????????????????????????????????????????????? | | ???????????????????????? ????????????????????????? | | ??????????????????????## ????????????????????????? | | ?????????????????????? ????????????????????????? | | ???????????? ????????? ????????????????????????? | | ???????????# ?????###?# ;????????????????????????? | | ???????????# ?????# #?# ;????????????????????????? | | ???????????# ????# #?# ;????????????????????????? | | ???????????# ????# #?? ;##??????????????????????? | | ???????????# ##### #?? ??????????????????????? | | ???????????# # #??#=[#??????????????????????? | | ???????????# ##### #??#%%#??????????????????????? | | ???????????# ????# #???BB#??????????????????????? | | ?????????g?# ????# #???BB#??????????????????????? | | ?? ##""""## ##??#Y#???#[##????#####????????????? | | ? #### #####!%######"T"#????????????? | | ?? #h [=![[ "#????????????? | | ???? ? #### #####@## ######????????????? | | ? ???# ?# #??# #???########?????????????????? | | # ## ## #### #????????????????????????????? | | " %=% #????????????????????????????? | | " ####????????????????????????????? | | " #???????????????????????????????? | | " #???????????????????????????????? | | # ## ## ###???????????????????????????????? | | # ## ## ^^#################################?? | | # #?? | | " #?? | | # ######## #################### #?? | | ## ##""""######??????# #??????????????????# #?? | | ??????????????????????# #??????????????????# #?? | | ??????????????????????# #??????????????????# #?? | | ??????????????????????# #??????????????????# #?? | | ??????????????????????# #??????????????????# #?? | | ??????????????????????# #??????????????????# #?? | | ??????????????????????# #??????????????????# #?? | | ??????????????????????# #??????????????????? #?? | | ??????????????????????# #??????????????????? #?? | | ??????????????????????# #??????????????????? #?? | | ??????????????????????# #??????????????????? #?? | | ??????????????????????# #??????????????????? ??? | | ??????????????????????# ############???????? ??? | +----------------------------------------------------+ Best States ------------- Heat Dissipation 50 Energy Generation 18 Energy Capacity 265 Matter Stores 300 Matter Capacity 300 Sight Range 20 Terrain Scan Density 10 Jamming Range 12 Armor Coverage 375 Resistance: KI 30 Weapon Cycling 20 Evasion (%) 40 Targeting Accuracy 6 Recoil Reduction 2 Offensive Hacking 10 Relay Coupler Types 4 Relay Coupler Value 46 Item Schematics ----------------- Huge Storage Unit | -8/Materials | Scanalyzed Robot Schematics ------------------ None Fabricated ------------ Nothing Alien Tech Used ----------------- None Achievements -------------- Factory Defaults Challenges ------------ None Game ------ Seed RegenerativeElectronShredder Manual? 0 Play Time 01:23:43 Cumulative 208.8 hours Start 2025.03.05 @ 11:24:25 End 2025.03.06 @ 02:40:26 Sessions 1 Manual Loads 0 Difficulty Rogue Special Mode None Game No. 102 Rogue 63 Adventurer 36 Explorer 3 Win Type - Total 6 Types 2/1/0/1/0/1/0/1/0 Lore% 67 Gallery% 66 Achievement% 64 Wizard Run 0 Options --------- Layout 1 ASCII 0 Keyboard 0 Movement Arrows Keybinds 0 Fullscreen 1 Font 24/Smallcaps Map View 50x35 Zoom Use 0% Tactical HUD 1 Map Filters NONE Filters NONE Steam 1 RUN: dc616f7a-7685-415b-a7c7-1e513899a973